bitfinex/quotes_SOLUSD_20250625
["timestamp","ask_amount","ask_price","bid_price","bid_amount"]
[1750852637065,17.42957809,146.37,146.32,40.13308595]
[1750852638188,17.42957809,146.37,146.32,34.63424912]
[1750852638386,17.42957809,146.37,146.32,40.13308595]
[1750852639583,17.42957809,146.37,146.33,5.49883683]
[1750852640378,5.09849766,146.37,146.34,3.51900204]
[1750852640781,36.35070103,146.38,146.34,3.51900204]
[1750852640981,41.44919869,146.38,146.34,3.51900204]
[1750852641164,5.09849766,146.37,146.34,3.51900204]
[1750852641362,36.35070103,146.38,146.34,3.51900204]
[1750852641363,26.0,146.38,146.34,3.51900204]
[1750852641589,31.09849766,146.38,146.34,10.35232391]
[1750852642269,31.09849766,146.38,146.34,12.33054094]
[1750852642470,5.09849766,146.37,146.34,12.33054094]
[1750852642981,5.09849766,146.37,146.36,5.49721907]
[1750852643185,5.09849766,146.39,146.36,5.49721907]
[1750852643419,5.09849766,146.4,146.36,12.32966185]
[1750852643595,5.09849766,146.39,146.37,5.92]
[1750852643887,17.4264555,146.4,146.37,5.92]
[1750852644066,5.09849766,146.39,146.37,5.92]
[1750852646991,5.09849766,146.39,146.37,11.41721907]
[1750852647194,5.09849766,146.4,146.37,11.41721907]
[1750852647487,5.09849766,146.39,146.37,11.41721907]
[1750852647688,5.09849766,146.4,146.37,5.92]
[1750852647891,5.09849766,146.39,146.37,5.92]
[1750852648095,5.09849766,146.4,146.37,5.92]
[1750852648278,5.09849766,146.39,146.37,5.92]
[1750852648478,5.09849766,146.4,146.37,5.92]
[1750852648685,5.09849766,146.39,146.37,5.92]
[1750852648890,10.59571673,146.4,146.37,5.92]
[1750852649088,5.09849766,146.39,146.37,5.92]
[1750852649691,10.59571673,146.38,146.32,88.7]
[1750852649876,5.49721907,146.35,146.31,18.25181429]
[1750852650498,5.49721907,146.35,146.31,46.05181429]
[1750852651082,11.94274806,146.37,146.33,5.49721907]
[1750852651291,12.32927627,146.37,146.33,5.49721907]
[1750852651496,17.43996713,146.37,146.33,5.49721907]
[1750852651796,6.83168996,146.38,146.33,5.49721907]
[1750852651984,5.11093512,146.37,146.34,5.49721907]
[1750852652186,12.32890903,146.38,146.34,5.49721907]
[1750852652388,5.49721907,146.36,146.32,5.49721907]
[1750852652589,10.60815393,146.36,146.32,5.49721907]
[1750852652788,5.49721907,146.36,146.32,5.49721907]
[1750852652989,5.11093486,146.36,146.33,5.49721907]
[1750852655605,5.11093486,146.36,146.33,12.33106366]
[1750852656809,5.11093486,146.36,146.34,5.49721907]
[1750852657010,5.11093486,146.37,146.34,5.49721907]
[1750852660308,10.60815393,146.37,146.32,6.8343357]
[1750852660511,17.44021247,146.37,146.33,5.49721907]
[1750852660686,5.49721907,146.37,146.33,5.49721907]
[1750852660885,10.60815393,146.37,146.33,5.49721907]
[1750852662727,17.4405204,146.37,146.33,5.49721907]
[1750852662904,12.32958554,146.37,146.33,5.49721907]
[1750852663220,10.60815393,146.37,146.34,5.92]
[1750852664413,8.62967364,146.37,146.34,5.92]
[1750852664800,3.51873878,146.36,146.34,5.92]
[1750852664994,5.11093486,146.35,146.34,5.92]
[1750852665194,5.11093486,146.36,146.34,5.92]
[1750852665395,5.11093486,146.37,146.34,5.92]
[1750852665619,5.11093486,146.36,146.34,5.92]
[1750852665787,5.11093486,146.37,146.34,9.43873878]
[1750852666320,10.35046615,146.38,146.34,9.43873878]
[1750852666502,5.11190127,146.37,146.34,9.43873878]
[1750852666693,5.11221486,146.37,146.34,9.43873878]
[1750852667024,5.11221486,146.37,146.34,5.92]
[1750852667821,11.94421997,146.37,146.34,5.92]
[1750852668015,6.83200511,146.37,146.34,5.92]
[1750852668724,5.11321389,146.36,146.34,5.92]
[1750852669721,15.46446155,146.36,146.34,5.92]
[1750852669926,10.35124766,146.36,146.34,5.92]
[1750852670422,15.46446155,146.36,146.34,5.92]
[1750852670621,10.35124766,146.36,146.34,5.92]
[1750852672232,6.83250888,146.36,146.34,5.92]
[1750852672914,11.94620787,146.36,146.34,5.92]
[1750852673316,5.11369899,146.36,146.34,5.92]
[1750852673819,10.35078905,146.37,146.34,5.92]
[1750852674317,5.11368368,146.36,146.34,5.92]
[1750852674808,11.94622611,146.36,146.34,5.92]
[1750852676015,15.46496489,146.36,146.34,5.92]
[1750852676323,3.51873878,146.35,146.34,5.92]
[1750852676708,10.35128121,146.36,146.34,5.92]
[1750852678152,3.51873878,146.35,146.34,5.92]
[1750852678331,8.63280744,146.35,146.34,5.92]
[1750852678936,1.6519,146.34,146.29,5.92]
[1750852679234,3.51873878,146.3,146.29,5.92]
[1750852679529,26.0,146.32,146.29,5.92]
[1750852679530,29.51873878,146.32,146.29,5.92]
[1750852680233,38.33699325,146.32,146.29,5.92]
[1750852681014,10.6172016,146.31,146.29,5.92]
[1750852681429,5.50244812,146.31,146.29,5.92]
[1750852681738,27.6519,146.34,146.29,11.42244812]
[1750852681916,5.11097455,146.33,146.3,5.50244812]
[1750852682120,5.11097455,146.33,146.29,11.42244812]
[1750852682319,5.50244812,146.33,146.29,11.42244812]
[1750852682510,10.61342267,146.33,146.29,18.25806384]
[1750852682715,5.50244812,146.33,146.29,18.25806384]
[1750852683816,13.98785676,146.34,146.3,5.50244812]
[1750852684021,5.50244812,146.34,146.3,5.50244812]
[1750852684717,12.33559793,146.35,146.31,33.30244812]
[1750852684927,5.50244812,146.36,146.32,5.50244812]
[1750852685639,12.33505588,146.36,146.32,5.50244812]
[1750852686563,17.44289979,146.36,146.32,5.50244812]
[1750852686726,5.50244812,146.35,146.31,33.30244812]
[1750852687638,11.94045167,146.36,146.31,40.13723981]
[1750852687639,12.33505588,146.36,146.31,40.13723981]
[1750852688223,12.33505588,146.36,146.32,5.92]
[1750852688480,12.335409,146.35,146.32,5.92]
[1750852689134,5.50244812,146.33,146.27,11.42244812]
[1750852689445,5.50244812,146.31,146.27,11.42244812]
[1750852690116,12.33709988,146.32,146.28,5.50244812]
[1750852690323,12.33709988,146.32,146.27,18.25905695]
[1750852691444,5.50244812,146.31,146.27,5.92]
[1750852691628,5.50244812,146.31,146.27,39.26244812]
[1750852692136,12.33709988,146.32,146.28,5.50244812]
[1750852692347,6.83465176,146.32,146.28,5.50244812]
[1750852692850,6.83465176,146.32,146.27,129.29665677]
[1750852693056,5.50244812,146.33,146.29,5.50244812]
[1750852693057,12.33652096,146.33,146.29,5.50244812]
[1750852695257,10.61029203,146.34,146.3,5.50244812]
[1750852695465,5.50244812,146.35,146.31,5.50244812]
[1750852695933,5.50244812,146.35,146.31,33.34244812]
[1750852696468,20.58071716,146.36,146.31,33.34244812]
[1750852697038,20.58071716,146.36,146.31,40.17719735]
[1750852698757,20.58071716,146.36,146.32,5.94]
[1750852699345,5.50244812,146.35,146.32,5.94]
[1750852699860,5.50244812,146.33,146.32,5.94]
[1750852700730,12.33631677,146.33,146.32,5.94]
[1750852701250,12.33631677,146.33,146.27,5.94]
[1750852701440,5.50244812,146.31,146.27,5.94]
[1750852702557,5.50244812,146.31,146.27,11.44244812]
[1750852702955,12.33764144,146.31,146.27,5.94]
[1750852703255,12.33764144,146.31,146.24,6.83769768]
[1750852703490,5.50244812,146.3,146.26,5.50244812]
[1750852703652,6.83519332,146.31,146.26,5.50244812]
[1750852703953,12.33764144,146.31,146.27,5.50244812]
[1750852704342,5.50244812,146.31,146.27,5.50244812]
[1750852705365,12.33762094,146.31,146.27,5.50244812]
[1750852706068,12.33762094,146.31,146.26,34.65707622]
[1750852706239,12.33762094,146.31,146.27,5.50244812]
[1750852712067,12.33762094,146.31,146.27,33.30244812]
[1750852715181,12.33762094,146.31,146.27,27.8]
[1750852715353,12.33762094,146.31,146.27,33.30244812]
[1750852715555,12.33762094,146.31,146.27,27.8]
[1750852716884,12.33762094,146.31,146.27,33.30244812]
[1750852717374,23.91854028,146.33,146.27,33.30244812]
[1750852717556,5.50244812,146.31,146.27,33.30244812]
[1750852718471,6.83386865,146.33,146.28,5.50244812]
[1750852718674,17.44416068,146.33,146.29,5.50244812]
[1750852718979,12.33631677,146.33,146.29,5.50244812]
[1750852719580,12.33631677,146.33,146.28,5.50244812]
[1750852720678,17.44416068,146.33,146.28,5.50244812]
[1750852720982,12.33631677,146.33,146.28,5.50244812]
[1750852721156,17.44416068,146.33,146.28,5.50244812]
[1750852721482,5.50244812,146.32,146.27,33.30244812]
[1750852721989,1.6204,146.31,146.27,33.30244812]
[1750852722171,7.12284812,146.31,146.27,27.8]
[1750852722770,5.50244812,146.3,146.27,27.8]
[1750852722971,5.50244812,146.3,146.26,33.30244812]
[1750852723358,5.50244812,146.28,146.25,5.94]
[1750852723677,5.50244812,146.27,146.25,5.94]
[1750852723974,5.50244812,146.28,146.25,5.94]
[1750852725677,12.33897145,146.28,146.25,5.94]
[1750852726973,6.83652333,146.28,146.25,5.94]
[1750852727783,12.33818535,146.29,146.25,5.94]
[1750852728382,12.33818535,146.29,146.25,11.44244812]
[1750852729058,6.83526999,146.3,146.25,11.44244812]
[1750852729254,5.50244812,146.29,146.25,11.44244812]
[1750852731087,12.33860077,146.29,146.25,11.44244812]
[1750852732796,12.33860077,146.29,146.25,5.94]
[1750852733876,5.50244812,146.28,146.25,5.94]
[1750852734276,12.33872115,146.28,146.25,5.94]
[1750852735876,5.50244812,146.27,146.25,5.94]
[1750852736183,5.50244812,146.27,146.24,5.92]
[1750852737189,5.50244812,146.27,146.23,12.34076202]
[1750852737490,12.33915879,146.27,146.24,5.92]
[1750852737662,6.83671067,146.27,146.24,5.92]
[1750852737864,12.33915879,146.27,146.24,5.92]
[1750852738389,12.33915879,146.27,146.23,12.34076202]
[1750852738684,12.33915879,146.27,146.24,5.92]
[1750852740086,12.33915879,146.27,146.23,12.34076202]
[1750852740272,12.33915879,146.27,146.24,5.92]
[1750852742288,5.50244812,146.28,146.24,5.92]
[1750852743288,12.33893961,146.28,146.24,5.92]
[1750852744490,6.83649149,146.28,146.24,11.42244812]
[1750852745697,6.83649149,146.28,146.24,18.26051063]
[1750852746093,5.10784391,146.3,146.24,18.26051063]
[1750852746394,12.33789273,146.3,146.26,5.50244812]
[1750852747289,12.3382722,146.29,146.25,5.50244812]
[1750852748769,5.50244812,146.29,146.25,12.33991079]
[1750852748978,12.33785317,146.3,146.26,5.50244812]
[1750852749468,18.66659203,146.31,146.27,5.50244812]
[1750852749670,13.55874812,146.31,146.27,5.50244812]
[1750852750376,8.0563,146.31,146.27,5.50244812]
[1750852750577,12.33652927,146.33,146.28,5.50244812]
[1750852751294,12.33652927,146.33,146.29,5.92]
[1750852751476,5.50244812,146.32,146.29,5.92]
[1750852751679,7.01624812,146.3,146.29,5.92]
[1750852751881,13.11644812,146.3,146.29,5.92]
[1750852752496,18.2276221,146.3,146.29,5.92]
[1750852752894,13.11644812,146.3,146.29,5.92]
[1750852753379,18.22781944,146.3,146.29,5.92]
[1750852755291,25.06308943,146.3,146.29,5.92]
[1750852759283,60.80091327,146.3,146.23,5.92]
[1750852759478,5.50244812,146.27,146.23,5.92]
[1750852759686,5.11137132,146.29,146.23,5.92]
[1750852759687,5.50244812,146.26,146.23,5.92]
[1750852760094,5.50244812,146.27,146.23,5.92]
[1750852760483,12.33949174,146.27,146.23,5.92]
[1750852761786,12.33949174,146.27,146.23,11.42244812]
[1750852762495,6.83620453,146.28,146.23,18.26092995]
[1750852762697,6.83620453,146.28,146.24,5.50244812]
[1750852762893,12.33865265,146.28,146.24,5.50244812]
[1750852764404,17.45002397,146.28,146.24,5.50244812]
[1750852764585,12.33865265,146.28,146.24,5.50244812]
[1750852764781,17.45002397,146.28,146.24,5.50244812]
[1750852764999,12.33865265,146.28,146.24,5.50244812]
[1750852765206,17.45002397,146.28,146.24,12.34048387]
[1750852765384,12.33865265,146.28,146.24,12.34048387]
[1750852765580,5.11137132,146.28,146.24,12.34048387]
[1750852765781,6.83574787,146.29,146.26,5.50244812]
[1750852765986,5.50244812,146.28,146.24,12.34048387]
[1750852766696,17.45387848,146.29,146.24,12.34048387]
[1750852766894,10.61813061,146.29,146.25,5.50244812]
[1750852767094,5.11568249,146.29,146.25,5.50244812]
[1750852767303,5.11568249,146.29,146.28,5.50244812]
[1750852767507,5.11568249,146.3,146.28,5.50244812]
[1750852767696,5.11568249,146.3,146.26,27.8]
[1750852767697,5.11568249,146.3,146.27,5.50244812]
[1750852768088,17.45341978,146.3,146.26,33.30244812]
[1750852768487,10.61813061,146.3,146.26,33.30244812]
[1750852769511,17.45357028,146.3,146.26,27.8]
[1750852771110,5.50244812,146.29,146.26,27.8]
[1750852771810,12.33827084,146.29,146.26,33.72]
[1750852772403,5.50244812,146.28,146.26,33.72]
[1750852772708,5.50244812,146.28,146.26,5.92]
[1750852773714,12.33881972,146.28,146.26,5.92]
[1750852773892,6.8363716,146.28,146.26,5.92]
[1750852775016,12.33881972,146.28,146.26,5.92]
[1750852775197,17.45680344,146.28,146.26,5.92]
[1750852779907,20.66495148,146.29,146.26,5.92]
[1750852783712,12.33879859,146.28,146.26,5.92]
[1750852786430,5.50244812,146.27,146.26,5.92]
[1750852789637,12.33912002,146.27,146.26,5.92]
[1750852790303,10.36055043,146.27,146.26,5.92]
[1750852791420,15.47775787,146.28,146.26,5.92]
[1750852793520,11.95387934,146.28,146.26,5.92]
[1750852793923,15.47775787,146.28,146.26,5.92]
[1750852795531,11.95387934,146.28,146.26,5.92]
[1750852795730,15.47775787,146.28,146.26,5.92]
[1750852796331,11.95387934,146.28,146.26,5.92]
[1750852796527,5.1174492,146.28,146.26,5.92]
[1750852797834,12.02354117,146.29,146.26,5.92]
[1750852798033,5.1174492,146.29,146.26,5.92]
[1750852800533,10.35929702,146.3,146.26,5.92]
[1750852800714,10.35929702,146.3,146.26,9.44387853]
[1750852801217,15.47558971,146.3,146.26,9.44387853]
[1750852801421,10.35929702,146.3,146.26,9.44387853]
[1750852801614,15.47558971,146.3,146.26,9.44387853]
[1750852801822,10.35929702,146.3,146.26,9.44387853]
[1750852802020,15.47558971,146.3,146.26,16.28093703]
[1750852802229,6.83541849,146.3,146.26,16.28093703]
[1750852802532,6.83497547,146.31,146.27,3.52387853]
[1750852802735,6.83497547,146.31,146.28,3.52387853]
[1750852803123,6.83497547,146.31,146.27,3.52387853]
[1750852803335,10.35961576,146.29,146.26,33.72]
[1750852803535,3.52387853,146.28,146.26,5.92]
[1750852803940,6.83573723,146.29,146.26,5.92]
[1750852804138,10.35961576,146.29,146.26,5.92]
[1750852804936,15.47637957,146.29,146.26,5.92]
[1750852805235,10.35961576,146.29,146.26,5.92]
[1750852805426,3.52387853,146.28,146.26,5.92]
[1750852805936,14.78554555,146.27,146.21,5.92]
[1750852806137,3.52387853,146.25,146.21,9.44387853]
[1750852806518,3.52387853,146.24,146.21,5.92]
[1750852806920,3.52387853,146.23,146.21,5.92]
[1750852807121,3.52387853,146.22,146.21,5.92]
[1750852807520,10.36288824,146.22,146.21,5.92]
[1750852808022,10.36261081,146.23,146.21,5.92]
[1750852808227,12.34816167,146.23,146.21,5.92]
[1750852809051,5.50942939,146.23,146.21,5.92]
[1750852809338,11.95346257,146.24,146.21,5.92]
[1750852809519,12.34766828,146.24,146.21,5.92]
[1750852815239,6.83780718,146.25,146.21,5.92]
[1750852815543,5.50942939,146.24,146.21,5.92]
[1750852816228,5.50942939,146.24,146.21,12.75935643]
[1750852816443,12.34751905,146.24,146.21,5.92]
[1750852817857,31.50942939,146.22,146.11,1.1926]
[1750852818025,7.11717486,146.21,146.12,11.42942939]
[1750852818348,26.0,146.22,146.17,5.50942939]
[1750852818556,7.13352939,146.23,146.18,5.50942939]
[1750852818849,7.13352939,146.23,146.18,11.42942939]
[1750852819751,7.13352939,146.23,146.19,5.50942939]
[1750852820129,17.46287928,146.24,146.2,5.50942939]
[1750852820331,12.3476556,146.24,146.18,5.92]
[1750852820550,18.81382288,146.25,146.21,5.50942939]
[1750852820758,12.34722288,146.25,146.21,5.50942939]
[1750852821063,17.45054114,146.25,146.21,5.50942939]
[1750852821233,1.6073,146.27,146.22,5.50942939]
[1750852821567,13.4396923,146.28,146.25,5.50942939]
[1750852821765,16.81531639,146.29,146.25,5.50942939]
[1750852821967,5.50942939,146.29,146.25,5.50942939]
[1750852822130,5.50942939,146.29,146.24,11.42942939]
[1750852822337,12.34554733,146.29,146.24,11.42942939]
[1750852822543,5.50942939,146.28,146.24,5.92]
[1750852822737,31.50942939,146.26,146.24,5.92]
[1750852823152,5.50942939,146.25,146.24,5.92]
[1750852823456,5.50942939,146.25,146.2,11.42942939]
[1750852823760,5.50942939,146.24,146.2,11.42942939]
[1750852823950,5.50942939,146.24,146.2,5.92]
[1750852824469,6.83854202,146.23,146.2,5.92]
[1750852824636,12.34797141,146.23,146.18,11.42942939]
[1750852826042,5.50942939,146.22,146.18,5.92]
[1750852826255,5.50942939,146.22,146.18,5.50942939]
[1750852826539,5.50942939,146.22,146.17,5.92]
[1750852826739,5.50942939,146.22,146.17,11.42942939]
[1750852828455,12.34883472,146.22,146.17,11.42942939]
[1750852828762,12.34883472,146.22,146.18,5.50942939]
[1750852829440,12.34883472,146.22,146.17,12.76129797]
[1750852829647,12.34883472,146.22,146.18,5.50942939]
[1750852830464,12.34883472,146.22,146.17,11.42942939]
[1750852830939,12.34883472,146.22,146.17,18.27075716]
[1750852831839,6.83940533,146.22,146.17,18.27075716]
[1750852832136,12.34883472,146.22,146.17,18.27075716]
[1750852832859,12.34883472,146.22,146.18,5.50942939]
[1750852833446,7.07032939,146.19,146.15,11.42942939]
[1750852834061,5.50942939,146.18,146.15,5.92]
[1750852834445,5.50942939,146.18,146.14,5.50942939]
[1750852834842,12.35048464,146.18,146.14,5.50942939]
[1750852836270,5.50942939,146.17,146.13,11.42942939]
[1750852836747,12.35048464,146.18,146.14,5.50942939]
[1750852837063,6.84105525,146.18,146.14,5.50942939]
[1750852837456,12.35048464,146.18,146.14,5.50942939]
[1750852837654,5.50942939,146.17,146.13,5.50942939]
[1750852838248,12.35104236,146.17,146.13,5.50942939]
[1750852838662,6.84161297,146.17,146.13,5.50942939]
[1750852839068,6.84161297,146.17,146.14,5.50942939]
[1750852839960,1.5609,146.19,146.16,5.50942939]
[1750852840348,1.5609,146.19,146.17,5.50942939]
[1750852843764,6.83956668,146.21,146.17,12.35076135]
[1750852844662,5.50942939,146.22,146.18,5.50942939]
[1750852844663,6.83921033,146.22,146.18,5.50942939]
[1750852847854,12.34863972,146.22,146.18,5.50942939]
[1750852849275,5.50942939,146.2,146.15,27.88]
[1750852849577,5.50942939,146.17,146.09,88.7]
[1750852849779,5.50942939,146.17,146.13,11.46942939]
[1750852851182,12.3510666,146.17,146.13,11.46942939]
[1750852852483,12.3510666,146.17,146.13,5.96]
[1750852852686,12.3510666,146.17,146.13,11.46942939]
[1750852859586,6.84163721,146.17,146.13,18.31260864]
[1750852859794,1.5197,146.18,146.14,5.50942939]
[1750852859988,1.5197,146.18,146.13,12.80317925]
[1750852859989,1.5197,146.18,146.16,5.50942939]
[1750852860181,1.5197,146.18,146.15,5.50942939]
[1750852860881,1.5197,146.18,146.13,12.80317925]
[1750852861196,1.5197,146.18,146.15,5.50942939]
[1750852861390,1.5197,146.18,146.15,12.35166494]
[1750852861973,8.36059455,146.18,146.15,5.50942939]
[1750852862996,6.84019036,146.2,146.16,5.50942939]
[1750852863304,12.34961975,146.2,146.16,5.50942939]
[1750852863474,12.34961975,146.2,146.14,6.84253413]
[1750852863674,5.50942939,146.19,146.13,101.50302192]
[1750852863976,5.50942939,146.19,146.15,5.50942939]
[1750852864302,5.50942939,146.19,146.14,5.50942939]
[1750852864468,5.50942939,146.18,146.14,5.50942939]
[1750852864671,5.50942939,146.18,146.13,5.96]
[1750852864885,5.50942939,146.18,146.14,5.50942939]
[1750852865623,6.84134911,146.17,146.14,5.50942939]
[1750852865791,6.84134911,146.17,146.13,11.46942939]
[1750852866300,12.3507785,146.17,146.13,5.96]
[1750852866496,12.3507785,146.17,146.13,11.46942939]
[1750852869102,6.84134911,146.17,146.13,5.96]
[1750852869287,6.84134911,146.17,146.13,11.46942939]
[1750852871910,8.3546027,146.18,146.15,5.50942939]
[1750852873108,8.3546027,146.18,146.13,12.80308023]
[1750852873294,8.3546027,146.18,146.15,5.50942939]
[1750852874603,8.3546027,146.18,146.14,5.50942939]
[1750852875417,8.3546027,146.18,146.13,5.96]
[1750852875617,13.86403209,146.18,146.14,5.50942939]
[1750852876004,8.3546027,146.18,146.14,5.50942939]
[1750852876304,8.3546027,146.18,146.13,5.96]
[1750852876506,8.3546027,146.18,146.15,5.50942939]
[1750852879712,8.3546027,146.18,146.13,12.80318985]
[1750852879919,8.3546027,146.18,146.15,5.50942939]
[1750852884801,8.3546027,146.18,146.14,5.50942939]
[1750852885116,13.86403209,146.18,146.13,11.46942939]
[1750852885300,18.98145813,146.18,146.13,11.46942939]
[1750852886228,30.5742315,146.18,146.13,9.48852436]
[1750852886434,29.52852436,146.15,146.13,5.96]
[1750852886616,1.6175,146.13,146.08,3.52852436]
[1750852886929,6.84369011,146.12,146.08,3.52852436]
[1750852888221,6.84369011,146.12,146.08,5.51720593]
[1750852888715,1.6175,146.13,146.11,5.51720593]
[1750852889734,8.46084288,146.13,146.11,5.51720593]
[1750852891235,8.46084288,146.13,146.08,6.84539445]
[1750852891434,8.46084288,146.13,146.11,5.51720593]
[1750852891839,8.46084288,146.13,146.1,5.51720593]
[1750852893133,13.97804881,146.13,146.09,5.51720593]
[1750852893334,5.51720593,146.12,146.07,11.45720593]
[1750852893752,5.51720593,146.12,146.08,5.51720593]
[1750852894530,6.84415851,146.11,146.08,5.51720593]
[1750852897611,1.6175,146.13,146.09,5.51720593]
[1750852897818,8.46080387,146.13,146.11,5.51720593]
[1750852898525,8.46080387,146.13,146.1,5.51720593]
[1750852899442,1.6175,146.13,146.1,5.51720593]
[1750852899639,1.6175,146.13,146.09,6.84497716]
[1750852899831,5.51720593,146.12,146.07,11.45720593]
[1750852901451,6.84415851,146.11,146.07,11.45720593]
[1750852904753,6.84389831,146.12,146.09,5.51720593]
[1750852906047,12.36110424,146.12,146.07,5.94]
[1750852906230,12.36110424,146.12,146.08,5.51720593]
[1750852907146,12.36110424,146.12,146.07,5.94]
[1750852907350,5.51720593,146.11,146.07,11.45720593]
[1750852908152,6.84462696,146.1,146.07,11.45720593]
[1750852909453,26.0,146.08,145.96,23.97917039]
[1750852909632,8.1353,146.09,146.05,5.51720593]
[1750852910036,13.65250593,146.09,146.05,5.51720593]
[1750852910231,6.84556407,146.08,146.05,5.51720593]
[1750852910646,14.98060835,146.09,146.05,5.51720593]
[1750852910842,8.1353,146.09,146.06,5.51720593]
[1750852911063,1.5359,146.09,146.06,5.51720593]
[1750852911237,8.38109936,146.09,146.06,5.51720593]
[1750852911438,8.38109936,146.09,146.05,5.51720593]
[1750852911737,13.89830529,146.09,146.05,5.51720593]
[1750852914040,8.38109936,146.09,146.05,5.51720593]
[1750852915060,1.5359,146.09,146.06,5.51720593]
[1750852915259,1.5359,146.09,146.07,5.51720593]
[1750852915961,1.5359,146.09,146.03,114.7]
[1750852916259,1.5359,146.09,146.07,5.51720593]
[1750852917970,1.5359,146.09,146.06,5.51720593]
[1750852918967,1.5359,146.09,146.07,5.51720593]
[1750852919156,12.36148302,146.11,146.07,5.51720593]
[1750852919654,12.36148302,146.11,146.06,11.47720593]
[1750852922068,5.51720593,146.1,146.06,11.47720593]
[1750852923976,6.84509548,146.09,146.06,11.47720593]
[1750852924872,6.84481682,146.1,146.06,18.32368783]
[1750852925080,13.64750593,146.12,146.07,5.51720593]
[1750852925248,7.04810593,146.12,146.08,5.51720593]
[1750852926148,13.89193024,146.12,146.08,5.51720593]
[1750852927269,8.37472431,146.12,146.08,5.51720593]
[1750852927474,8.37472431,146.12,146.09,5.51720593]
[1750852928847,6.84294752,146.14,146.1,5.51720593]
[1750852929047,11.95047074,146.14,146.1,5.51720593]
[1750852929676,17.46767667,146.14,146.09,6.84504754]
[1750852929867,17.46767667,146.14,146.1,5.51720593]
[1750852930256,11.95047074,146.14,146.1,5.51720593]
[1750852930574,17.46767667,146.14,146.1,5.51720593]
[1750852930775,17.46767667,146.14,146.09,6.84478323]
[1750852930974,17.46767667,146.14,146.1,5.51720593]
[1750852931276,11.95047074,146.14,146.1,5.51720593]
[1750852931470,11.95047074,146.14,146.11,5.51720593]
[1750852931471,6.84294752,146.14,146.11,5.51720593]
[1750852931869,12.36015345,146.14,146.1,5.51720593]
[1750852935382,12.36015345,146.14,146.07,6.84603272]
[1750852935576,12.36015345,146.14,146.1,5.51720593]
[1750852935781,17.46767667,146.14,146.1,5.51720593]
[1750852936206,17.46767667,146.14,146.07,95.54603272]
[1750852936484,17.46767667,146.14,146.1,5.51720593]
[1750852936678,17.46767667,146.14,146.09,5.51720593]
[1750852937371,5.51720593,146.13,146.07,95.54590927]
[1750852937670,11.95047074,146.14,146.08,5.51720593]
[1750852937671,5.51720593,146.12,146.08,5.51720593]
[1750852937855,5.51720593,146.13,146.07,6.84590927]
[1750852938057,5.51720593,146.12,146.07,12.3631152]
[1750852938880,5.51720593,146.12,146.08,5.51720593]
[1750852939182,12.36082737,146.13,146.09,5.51720593]
[1750852939580,17.46835059,146.13,146.08,5.51720593]
[1750852939899,12.36082737,146.13,146.08,5.51720593]
[1750852940185,12.36082737,146.13,146.08,12.36270822]
[1750852940371,17.46835059,146.13,146.08,12.36270822]
[1750852940580,12.36082737,146.13,146.08,6.84550229]
[1750852940769,12.36082737,146.13,146.08,12.36270822]
[1750852941372,17.46835059,146.13,146.08,12.36270822]
[1750852941568,12.36082737,146.13,146.08,12.36270822]
[1750852941986,17.46835059,146.13,146.08,12.36270822]
[1750852942186,5.51720593,146.11,146.06,94.66]
[1750852942395,5.51720593,146.11,146.07,5.51720593]
[1750852943377,6.84415851,146.11,146.07,5.51720593]
[1750852943582,6.84415851,146.11,146.08,5.51720593]
[1750852944269,6.84415851,146.11,146.07,6.84594706]
[1750852944584,6.84415851,146.11,146.08,5.51720593]
[1750852944891,12.36111673,146.12,146.08,5.51720593]
[1750852945082,6.8439108,146.12,146.08,5.51720593]
[1750852945895,17.46818094,146.13,146.08,12.36266578]
[1750852946688,17.46818094,146.13,146.08,6.84545985]
[1750852946985,5.51720593,146.12,146.08,5.51720593]
[1750852947290,5.51720593,146.12,146.08,12.362708]
[1750852948889,12.36106029,146.12,146.08,12.362708]
[1750852954379,10.37494379,146.12,146.08,3.53108943]
[1750852960027,15.49456967,146.12,146.08,3.53108943]
[1750852960201,10.37494379,146.12,146.08,3.53108943]
[1750852960534,15.49456967,146.12,146.08,3.53108943]
[1750852960819,10.37494379,146.12,146.08,3.53108943]
[1750852961016,15.49456967,146.12,146.08,3.53108943]
[1750852961192,10.37494379,146.12,146.08,3.53108943]
[1750852961397,11.96348024,146.12,146.08,3.53108943]
[1750852962908,6.84385436,146.12,146.08,3.53108943]
[1750852964394,11.96480188,146.12,146.08,3.53108943]
[1750852964798,11.96480188,146.12,146.08,16.31656546]
[1750852964995,11.96480188,146.12,146.09,3.53108943]
[1750852966722,11.96480188,146.12,146.08,9.47108943]
[1750852967422,15.49589131,146.12,146.08,5.94]